bitfinex-derivatives/quotes_SOLF0:USTF0_20250125
["timestamp","ask_amount","ask_price","bid_price","bid_amount"]
[1737799192314,4.0354,247.85,247.83,0.02583448]
[1737799193915,4.0351,247.87,247.83,0.02583448]
[1737799194518,4.0354,247.84,247.83,0.02583448]
[1737799196717,10.02632421,247.84,247.83,0.02583448]
[1737799199923,4.0354,247.84,247.83,0.02583448]
[1737799202719,4.0354,247.84,247.71,1.3294]
[1737799202720,4.0362,247.79,247.73,8.57092421]
[1737799202923,5.99092421,247.8,247.71,5.99092421]
[1737799203225,5.99092421,247.76,247.7,4.0375]
[1737799203523,5.99092421,247.76,247.69,140.26635115]
[1737799203724,5.99092421,247.74,247.69,140.26635115]
[1737799204020,5.99092421,247.74,247.7,0.02692385]
[1737799205126,4.0375,247.72,247.7,0.02692385]
[1737799205922,4.0375,247.71,247.7,0.02692385]
[1737799206227,5.99092421,247.72,247.66,140.26635115]
[1737799206423,5.99092421,247.69,247.66,140.26635115]
[1737799207618,10.02912421,247.67,247.66,140.26635115]
[1737799208923,10.02912421,247.67,247.65,0.02717185]
[1737799209125,5.99092421,247.67,247.55,5.99092421]
[1737799209424,10.03062421,247.58,247.52,4.0406]
[1737799210333,0.03021382,247.57,247.53,0.02725624]
[1737799211028,4.0402,247.55,247.53,0.02725624]
[1737799211223,5.99092421,247.54,247.53,0.02725624]
[1737799212332,5.99092421,247.54,247.51,135.3977226]
[1737799212527,5.99092421,247.54,247.47,168.31962138]
[1737799212528,5.99092421,247.52,247.4,5.99092421]
[1737799212730,5.99092421,247.47,247.38,5.99092421]
[1737799213126,4.0416,247.46,247.38,5.99092421]
[1737799213334,5.99092421,247.45,247.37,4.043]
[1737799213532,0.02607011,247.44,247.4,0.02704793]
[1737799213727,10.03302421,247.43,247.4,0.02704793]
[1737799213932,0.02607011,247.44,247.4,0.02704793]
[1737799215438,5.99092421,247.51,247.42,5.99092421]
[1737799215635,5.99092421,247.55,247.46,5.99092421]
[1737799215833,5.99092421,247.57,247.48,5.99092421]
[1737799216228,5.99092421,247.57,247.52,4.0405]
[1737799216634,6.01931536,247.57,247.52,0.02615017]
[1737799216835,6.01931536,247.57,247.53,4.0404]
[1737799217336,6.01931536,247.57,247.52,0.02615017]
[1737799217636,0.02839115,247.57,247.52,0.02615017]
[1737799219129,9.42763572,247.57,247.52,0.02615017]
[1737799219434,9.39924457,247.54,247.38,2.58]
[1737799219632,9.39924457,247.54,247.38,11.97924457]
[1737799219835,4.0408,247.51,247.38,11.97924457]
[1737799220034,9.39924457,247.57,247.41,9.39924457]
[1737799220237,9.39924457,247.6,247.44,9.39924457]
[1737799220432,4.04,247.56,247.45,2.6265]
[1737799220633,0.0256009,247.54,247.5,0.0264681]
[1737799221032,0.0256009,247.54,247.52,4.0406]
[1737799221234,9.39924457,247.63,247.5,0.0264681]
[1737799222137,4.0394,247.6,247.54,4.0402]
[1737799222339,0.02813258,247.59,247.54,4.0402]
[1737799222536,0.02813258,247.59,247.47,9.39924457]
[1737799222737,0.02813258,247.59,247.54,0.02582441]
[1737799223336,0.02813258,247.59,247.57,4.0398]
[1737799224141,4.0383,247.67,247.55,2.6999]
[1737799224331,9.39924457,247.7,247.55,2.6999]
[1737799224939,4.0383,247.67,247.55,2.6999]
[1737799225135,9.39924457,247.7,247.55,2.6999]
[1737799225339,0.02880097,247.63,247.59,0.03032018]
[1737799226443,0.02880097,247.63,247.59,4.06962018]
[1737799226740,0.02880097,247.63,247.59,0.03032018]
[1737799229438,4.0392,247.61,247.59,0.03032018]
[1737799230137,0.02880097,247.63,247.59,0.03032018]
[1737799230543,9.39924457,247.76,247.6,9.39924457]
[1737799230840,4.0376,247.71,247.6,9.39924457]
[1737799231041,9.39924457,247.76,247.6,9.39924457]
[1737799231634,0.02831034,247.7,247.66,0.02606251]
[1737799232236,0.02831034,247.7,247.68,4.038]
[1737799233140,9.39924457,247.82,247.7,4.0376]
[1737799233345,9.39924457,247.82,247.69,9.39924457]
[1737799233549,54.0434116,247.83,247.69,9.39924457]
[1737799234241,54.0434116,247.83,247.74,0.02794576]
[1737799234446,4.06567341,247.78,247.74,0.02794576]
[1737799234843,0.02927341,247.78,247.74,0.02794576]
[1737799235147,0.02927341,247.78,247.74,4.06494576]
[1737799239551,0.02927341,247.78,247.74,0.02794576]
[1737799240955,0.02927341,247.78,247.74,4.06494576]
[1737799241152,0.02927341,247.78,247.69,9.39924457]
[1737799241653,0.02927341,247.78,247.75,6.00302798]
[1737799241947,0.02927341,247.78,247.75,10.03982798]
[1737799242151,0.02927341,247.78,247.77,6.00302798]
[1737799242358,6.00302798,247.87,247.77,6.00302798]
[1737799242655,6.00302798,247.87,247.79,6.00302798]
[1737799242843,4.0352,247.85,247.81,6.00302798]
[1737799243049,6.00302798,247.89,247.81,6.00302798]
[1737799243351,6.00302798,247.91,247.83,6.00302798]
[1737799243553,0.03067902,247.87,247.83,6.03093653]
[1737799243749,0.03067902,247.87,247.83,0.02790855]
[1737799243950,0.03067902,247.87,247.83,4.06340855]
[1737799244246,0.03067902,247.87,247.83,0.02790855]
[1737799244450,4.06567902,247.87,247.83,0.02790855]
[1737799246054,0.03067902,247.87,247.83,4.06340855]
[1737799247754,0.03067902,247.87,247.84,4.0354]
[1737799248054,0.03067902,247.87,247.83,0.02790855]
[1737799249953,0.03067902,247.87,247.83,4.06340855]
[1737799250349,0.03067902,247.87,247.83,0.02790855]
[1737799251659,0.03067902,247.87,247.86,4.0351]
[1737799255659,0.03067902,247.87,247.83,0.02790855]
[1737799258159,0.03067902,247.87,247.83,4.06340855]
[1737799258862,0.03067902,247.87,247.85,4.0352]
[1737799259861,0.03067902,247.87,247.86,4.0351]
[1737799260252,1.3101,248.05,247.86,9.37398532]
[1737799260464,1.3101,248.05,247.94,4.0338]
[1737799260657,9.37398532,248.06,247.93,9.37398532]
[1737799261154,9.37398532,248.09,247.93,9.37398532]
[1737799261354,0.02578316,248.02,247.97,0.02813432]
[1737799261955,4.05838316,248.02,247.97,4.06133432]
[1737799262365,0.02578316,248.02,247.97,0.02813432]
[1737799262767,0.02578316,248.02,247.93,9.37398532]
[1737799263065,9.37398532,248.08,247.93,13.40778532]
[1737799263465,9.37398532,248.08,247.93,9.37398532]
[1737799263670,4.033,247.99,247.95,5.99367307]
[1737799263866,4.033,247.99,247.98,0.03089153]
[1737799265062,4.0341,247.93,247.89,5.99367307]
[1737799265466,5.99367307,247.96,247.89,5.99367307]
[1737799265857,5.99367307,247.94,247.87,7.36617307]
[1737799266059,5.99367307,247.94,247.85,5.99367307]
[1737799266268,12.11,248.08,247.88,0.02664354]
[1737799266269,5.99367307,247.92,247.88,0.02664354]
[1737799266473,5.99367307,247.92,247.85,5.99367307]
[1737799266767,6.01917693,247.92,247.88,0.03014485]
[1737799267669,4.0346,247.89,247.88,0.03014485]
[1737799268471,4.0356,247.83,247.78,1.2798]
[1737799268868,9.37343362,247.9,247.78,5.3161]
[1737799269066,9.37343362,247.93,247.78,1.2798]
[1737799269371,9.37343362,247.96,247.8,9.37343362]
[1737799269573,4.0344,247.91,247.8,9.37343362]
[1737799269870,0.02648916,247.9,247.86,0.02589665]
[1737799270067,4.0337,247.95,247.88,4.0347]
[1737799270372,0.0524,248.02,247.87,9.37343362]
[1737799271671,0.02576677,247.97,247.92,0.02770768]
[1737799272472,4.05906677,247.97,247.92,0.02770768]
[1737799272964,0.02576677,247.97,247.92,0.02770768]
[1737799273164,4.0335,247.96,247.92,0.02770768]
[1737799273574,0.02576677,247.97,247.92,0.02770768]
[1737799273774,4.0336,247.95,247.92,0.02770768]
[1737799275070,4.05916677,247.97,247.92,0.02770768]
[1737799275373,0.02576677,247.97,247.92,0.02770768]
[1737799277772,4.0335,247.96,247.92,0.02770768]
[1737799278073,0.02576677,247.97,247.92,0.02770768]
[1737799278669,4.0337,247.95,247.92,0.02770768]
[1737799279274,0.02576677,247.97,247.92,0.02770768]
[1737799279977,4.0336,247.95,247.92,0.02770768]
[1737799282481,0.02576677,247.97,247.92,0.02770768]
[1737799282482,4.05906677,247.97,247.92,4.06180768]
[1737799282779,0.02576677,247.97,247.94,9.37343362]
[1737799283074,9.37343362,248.1,247.94,9.37343362]
[1737799283273,9.37343362,248.1,247.95,9.37343362]
[1737799283673,2.91526843,248.07,247.95,9.37343362]
[1737799283975,4.0328,248.0,247.95,9.37343362]
[1737799284171,2.91526843,248.07,247.95,9.37343362]
[1737799284372,0.02622002,248.0,247.95,9.40280752]
[1737799284778,0.02622002,248.0,247.98,4.033]
[1737799284980,0.02622002,248.0,247.95,9.40280752]
[1737799285881,1.3468,248.11,247.96,3.8888]
[1737799286275,4.032,248.05,248.0,4.0327]
[1737799286474,4.032,248.05,247.98,9.37343362]
[1737799286982,0.02801991,248.04,247.99,0.02627653]
[1737799287281,4.0328,248.0,247.99,7.653e-05]
[1737799287583,9.37343362,248.0,247.83,147.36614951]
[1737799287782,4.0345,247.9,247.86,5.99820973]
[1737799288678,4.06071137,247.9,247.86,6.025593]
[1737799289684,4.06071137,247.9,247.86,0.02738327]
[1737799290485,4.0346,247.89,247.86,0.02738327]
[1737799291284,4.0349,247.88,247.86,0.02738327]
[1737799294484,9.37168902,247.89,247.73,9.37168902]
[1737799294686,1.2665,247.88,247.73,9.37168902]
[1737799294979,4.0365,247.78,247.73,9.37168902]
[1737799295188,4.18476838,247.88,247.73,9.37168902]
[1737799295582,4.0362,247.79,247.78,0.02989509]
[1737799295782,0.02818155,247.83,247.78,0.02989509]
[1737799297585,4.0361,247.8,247.78,0.02989509]
[1737799298583,4.0358,247.82,247.78,0.02989509]
[1737799299286,4.0359,247.81,247.78,0.02989509]
[1737799301083,4.06388155,247.83,247.78,0.02989509]
[1737799302088,4.06388155,247.83,247.78,4.06619509]
[1737799302983,4.0359,247.81,247.78,0.02989509]
[1737799303188,0.02818155,247.83,247.78,0.02989509]
[1737799303485,0.02818155,247.83,247.74,9.37168902]
[1737799304089,4.06388155,247.83,247.77,4.0365]
[1737799304291,0.02818155,247.83,247.74,9.37168902]
[1737799304491,0.02818155,247.83,247.78,0.02668308]
[1737799304784,0.02818155,247.83,247.79,4.0362]
[1737799305590,4.06378155,247.83,247.78,0.02668308]
[1737799306189,4.06378155,247.83,247.78,4.06308308]
[1737799307391,0.02818155,247.83,247.78,0.02668308]
[1737799307992,4.0362,247.79,247.78,0.02668308]
[1737799322509,4.036,247.81,247.78,0.02668308]
[1737799323005,4.0362,247.79,247.78,0.02668308]
[1737799323205,9.37168902,247.79,247.62,9.37168902]
[1737799323507,4.0375,247.71,247.61,1.282]
[1737799323708,9.37168902,247.75,247.61,1.282]
[1737799324405,0.02828912,247.7,247.66,0.03110249]
[1737799324809,4.0382,247.67,247.66,0.03110249]
[1737799325411,4.038,247.68,247.66,0.03110249]
[1737799326110,4.038,247.68,247.6,1.3405]
[1737799326309,4.0383,247.67,247.56,4.0399]
[1737799326509,9.37168902,247.71,247.56,4.0399]
[1737799327308,0.02698739,247.66,247.56,4.0399]
[1737799327809,0.02698739,247.66,247.55,9.37168902]
[1737799328009,0.02698739,247.66,247.59,9.37168902]
[1737799328509,0.02698739,247.66,247.61,4.0391]
[1737799328906,0.02698739,247.66,247.62,4.0389]
[1737799329208,0.02698739,247.66,247.59,9.37168902]
[1737799329610,0.02698739,247.66,247.63,4.0387]
[1737799330604,0.02698739,247.66,247.64,4.0386]
[1737799330804,1.3758,247.78,247.63,9.37168902]
[1737799331201,9.37168902,247.79,247.64,2.6099]
[1737799332008,0.0282692,247.74,247.69,0.02609906]
[1737799332814,9.37168902,247.73,247.69,9.906e-05]
[1737799333107,9.37168902,247.7,247.53,11.97088902]
[1737799333312,21.48168902,247.8,247.53,2.5992]
[1737799333313,9.37168902,247.66,247.53,2.5992]
[1737799333810,9.37168902,247.7,247.54,9.37168902]
[1737799334310,0.03004376,247.64,247.54,9.37168902]
[1737799334510,4.0394,247.6,247.54,9.37168902]
[1737799335312,0.03004376,247.64,247.53,2.5992]
[1737799335511,9.37168902,247.66,247.53,2.5992]
[1737799335709,0.03052488,247.61,247.53,6.6395]
[1737799336813,0.03052488,247.61,247.53,2.5992]
[1737799337012,0.03052488,247.61,247.51,1.3894]
[1737799337414,4.0401,247.56,247.51,1.3894]
[1737799337814,4.06799829,247.56,247.51,1.3894]
[1737799338308,0.02789829,247.56,247.51,1.3894]
[1737799338512,4.0402,247.55,247.51,1.3894]
[1737799338707,0.02789829,247.56,247.51,1.3894]
[1737799339812,4.0403,247.54,247.51,1.3894]
[1737799340315,4.0406,247.52,247.51,1.3894]
[1737799340507,4.0406,247.52,247.46,13.41318902]
[1737799340714,4.0406,247.52,247.46,4.0415]
[1737799342016,4.0409,247.51,247.46,4.0415]
[1737799342409,0.0291196,247.51,247.45,1.2871]
[1737799343124,0.0291196,247.51,247.43,10.73458902]
[1737799343913,0.0291196,247.51,247.43,1.3629]
[1737799344813,4.0414,247.48,247.43,1.3629]
[1737799345919,0.0291196,247.51,247.43,10.73458902]
[1737799346120,0.0291196,247.51,247.46,9.37168902]
[1737799346324,0.0291196,247.51,247.46,7.59898264]
[1737799346620,0.0291196,247.51,247.5,4.0409]
[1737799348721,0.0291196,247.51,247.48,4.0411]
[1737799349520,0.0291196,247.51,247.46,7.59898264]
[1737799349720,4.0699196,247.51,247.43,10.73458902]
[1737799351122,4.0699196,247.51,247.46,4.0416]
[1737799354229,0.0291196,247.51,247.43,1.3629]
[1737799356126,4.0411,247.49,247.45,4.0417]
[1737799356330,0.0291196,247.51,247.43,10.73458902]
[1737799356627,0.0291196,247.51,247.46,9.37168902]
[1737799357723,0.0291196,247.51,247.49,4.0411]
[1737799358326,0.0291196,247.51,247.46,4.0416]
[1737799358525,0.0291196,247.51,247.43,10.73458902]
[1737799360127,4.0413,247.48,247.43,14.77668902]
[1737799360730,4.0414,247.47,247.43,14.77668902]
[1737799361233,0.0291196,247.51,247.43,10.73458902]
[1737799362226,4.0417,247.46,247.43,10.73458902]
[1737799364733,4.0413,247.48,247.43,10.73458902]
[1737799365032,9.40080862,247.51,247.37,9.37168902]
[1737799365332,205.11,247.58,247.28,156.72277556]
[1737799365333,9.37168902,247.47,247.29,10.73368902]
[1737799365533,0.02607092,247.46,247.29,10.73368902]
[1737799365735,9.37168902,247.47,247.29,10.73368902]
[1737799365937,0.02705643,247.4,247.33,9.37168902]
[1737799366737,4.06965643,247.4,247.32,4.0437]
[1737799367239,4.0431,247.37,247.32,4.0437]
[1737799367439,0.02705643,247.4,247.3,4.0442]
[1737799367639,0.02705643,247.4,247.29,1.362]
[1737799367838,0.02705643,247.4,247.3,1.3562]
[1737799369142,4.0433,247.36,247.31,4.044]
[1737799369443,0.02705643,247.4,247.3,1.3562]
[1737799370146,0.02705643,247.4,247.31,9.37168902]
[1737799370444,0.02705643,247.4,247.34,9.37168902]
[1737799370944,9.37168902,247.53,247.37,9.37168902]
[1737799371144,2.91037644,247.52,247.38,1.298]
[1737799371443,9.37168902,247.5,247.38,1.298]
[1737799371942,4.0423,247.42,247.38,1.298]
[1737799372142,0.03076111,247.46,247.35,4.0432]
[1737799372342,9.37168902,247.47,247.38,0.02813375]
[1737799372643,0.02730705,247.43,247.31,13.30968902]
[1737799372943,0.02730705,247.43,247.34,4.0435]
[1737799373243,0.02730705,247.43,247.35,0.02813375]
[1737799374243,4.0426,247.4,247.35,0.02813375]
[1737799374845,0.02730705,247.43,247.35,0.02813375]
[1737799376043,4.0432,247.36,247.35,0.02813375]
[1737799379847,0.02875288,247.38,247.35,0.02813375]
[1737799381051,4.0422,247.43,247.35,0.02813375]
[1737799381247,4.0422,247.43,247.32,9.37168902]
[1737799381647,4.0422,247.43,247.35,4.0433]
[1737799381846,4.0422,247.43,247.36,1.3525]
[1737799382352,0.03080475,247.42,247.37,0.02783138]
[1737799382550,4.07310475,247.42,247.38,4.0428]
[1737799382849,4.07310475,247.42,247.37,0.02783138]
[1737799383051,0.03080475,247.42,247.37,0.02783138]
[1737799383843,4.0429,247.38,247.37,0.02783138]
[1737799385249,13.41458902,247.38,247.37,3.138e-05]
[1737799388455,4.0444,247.29,247.24,5.4488]
[1737799389651,4.07368547,247.29,247.24,5.47785525]
[1737799389856,0.02928547,247.29,247.24,1.43285525]
[1737799390051,4.0446,247.28,247.24,1.43285525]
[1737799390647,0.02928547,247.29,247.24,0.02905525]
[1737799391260,4.0449,247.26,247.24,0.02905525]
[1737799391756,0.02928547,247.29,247.24,0.02905525]
[1737799392249,4.0447,247.28,247.24,0.02905525]
[1737799392455,0.02928547,247.29,247.24,0.02905525]
[1737799396059,4.0446,247.28,247.24,0.02905525]
[1737799396253,0.02928547,247.29,247.24,0.02905525]
[1737799397058,4.0448,247.27,247.24,0.02905525]
[1737799397258,0.02928547,247.29,247.24,0.02905525]
[1737799397956,0.02928547,247.29,247.25,4.0449]
[1737799398963,0.02928547,247.29,247.24,0.02905525]
[1737799399658,9.37168902,247.41,247.28,4.0445]
[1737799399858,1.3637,247.43,247.28,9.37168902]
[1737799400059,9.37168902,247.44,247.29,1.3305]
[1737799400258,9.37168902,247.44,247.29,3.9705]
[1737799400761,9.37168902,247.38,247.29,3.9705]
[1737799400962,9.37168902,247.38,247.34,0.02643209]
[1737799401162,4.0434,247.35,247.34,0.02643209]
[1737799402960,4.044,247.32,247.25,1.3163]
[1737799404161,0.02760932,247.31,247.26,4.07544269]
[1737799404463,4.07170932,247.31,247.26,4.07544269]
[1737799405564,4.0444,247.29,247.26,0.03064269]
[1737799406365,6.05571403,247.31,247.26,0.03064269]
[1737799406564,0.02760932,247.31,247.26,0.03064269]
[1737799407364,4.0444,247.29,247.26,0.03064269]
[1737799410275,4.0446,247.28,247.26,0.03064269]
[1737799410977,6.05571403,247.31,247.26,0.03064269]
[1737799411575,4.0445,247.29,247.26,0.03064269]
[1737799413076,4.0447,247.27,247.26,0.03064269]
[1737799417580,10.07280471,247.27,247.26,0.03064269]
[1737799417779,6.02810471,247.27,247.14,6.02810471]
[1737799417979,6.02810471,247.21,247.14,6.02810471]
[1737799418473,6.02810471,247.27,247.18,6.02810471]
[1737799418871,4.07509357,247.25,247.18,6.02810471]
[1737799419077,0.02999357,247.25,247.18,6.02810471]
[1737799419277,6.05809828,247.25,247.16,6.02810471]
[1737799419472,4.046,247.2,247.16,6.02810471]
[1737799420482,6.05809828,247.25,247.16,10.07460471]
[1737799420784,6.05809828,247.25,247.16,6.02810471]
[1737799421675,4.0458,247.21,247.16,10.07460471]
[1737799421879,6.05809828,247.25,247.16,6.02810471]
[1737799422180,6.02810471,247.23,247.16,6.02810471]
[1737799423281,4.0457,247.22,247.16,10.07460471]
[1737799423485,6.02810471,247.23,247.16,4.0465]
[1737799423681,4.0458,247.2,247.14,10.07480471]
[1737799423881,4.0458,247.2,247.14,6.02810471]
[1737799424181,0.03062037,247.19,247.14,6.02810471]
[1737799425187,0.03062037,247.19,247.15,4.0466]
[1737799425688,4.0462,247.18,247.14,6.02810471]
[1737799425878,0.03062037,247.19,247.14,6.02810471]
[1737799426283,0.03062037,247.19,247.12,6.02810471]
[1737799426985,6.05872508,247.19,247.12,6.02810471]
[1737799427288,4.0464,247.17,247.12,6.02810471]
[1737799428589,4.0467,247.15,247.11,1.3348]
[1737799429389,6.02810471,247.17,247.11,1.3348]
[1737799429783,4.047,247.13,247.07,4.0479]
[1737799429981,4.047,247.13,247.08,6.02810471]
[1737799430182,0.0301133,247.12,247.08,6.02810471]
[1737799432187,0.0301133,247.12,247.1,4.0474]
[1737799432785,0.0301133,247.12,247.08,6.02810471]
[1737799433390,0.0301133,247.12,247.11,4.0473]
[1737799434690,6.02810471,247.21,247.15,4.0465]
[1737799435794,0.0282514,247.2,247.16,0.02692648]
[1737799436095,4.0741514,247.2,247.16,0.02692648]
[1737799436590,0.0282514,247.2,247.19,4.046]
[1737799436796,0.0282514,247.2,247.16,0.02692648]
[1737799437197,4.0742514,247.2,247.16,0.02692648]
[1737799437798,4.0462,247.18,247.16,0.02692648]
[1737799438497,0.0282514,247.2,247.16,0.02692648]
[1737799438700,4.0742514,247.2,247.16,0.02692648]
[1737799439095,4.0461,247.19,247.16,0.02692648]
[1737799439297,0.0282514,247.2,247.17,4.0463]
[1737799439499,0.0282514,247.2,247.16,0.02692648]
[1737799440900,0.0282514,247.2,247.18,4.046]
[1737799441400,0.0282514,247.2,247.16,4.07332648]
[1737799441798,6.02810471,247.17,247.02,137.99271589]
[1737799442099,6.02810471,247.07,247.02,137.99271589]
[1737799442902,6.05437879,247.07,247.02,137.99271589]
[1737799443400,10.07670471,247.03,247.02,130.78091589]
[1737799444397,6.05437879,247.07,247.02,130.78091589]
[1737799445102,6.05437879,247.07,246.98,6.02810471]
[1737799446399,6.02810471,247.05,246.96,6.02810471]
[1737799446598,6.02810471,247.03,246.96,6.02810471]
[1737799447002,0.02722823,247.02,246.96,6.02810471]
[1737799449102,0.02722823,247.02,247.0,6.02810471]
[1737799449705,0.02722823,247.02,246.98,6.02810471]
[1737799450503,0.02722823,247.02,247.0,6.02810471]
[1737799450900,6.02810471,247.09,247.0,6.02810471]
[1737799451104,6.02810471,247.13,247.04,6.02810471]
[1737799451806,6.02810471,247.13,247.06,6.02810471]
[1737799452106,0.0298625,247.12,247.07,0.02721906]
[1737799452405,6.02810471,247.11,247.07,0.02721906]
[1737799452602,6.02810471,247.09,247.07,0.02721906]
[1737799453706,10.07580471,247.09,247.07,0.02721906]
[1737799454412,10.07580471,247.09,246.95,7.38060471]
[1737799454413,4.0485,247.04,246.95,7.38060471]
[1737799454604,6.02810471,247.03,246.95,7.38060471]
[1737799455404,0.02791013,247.01,246.97,10.07760471]
[1737799455904,0.02791013,247.01,246.95,1.3525]
[1737799456308,0.02791013,247.01,246.98,4.0494]
[1737799456808,0.02791013,247.01,246.99,4.0492]
[1737799458900,4.0474,247.11,247.03,4.0485]
[1737799459205,9.43761673,247.12,247.03,4.0485]
[1737799459807,9.43761673,247.12,246.97,9.43761673]
[1737799460108,0.02595018,247.1,247.05,0.02796724]
[1737799461607,0.02595018,247.1,247.07,4.0479]
[1737799462100,0.02595018,247.1,247.05,0.02796724]
[1737799462303,0.02595018,247.1,247.08,4.0477]
[1737799462709,0.02595018,247.1,247.05,0.02796724]
[1737799464108,0.02595018,247.1,247.07,4.0478]
[1737799464311,9.43761673,247.09,247.05,0.02796724]
[1737799464709,4.048,247.07,247.05,0.02796724]
[1737799464910,0.02595018,247.1,247.05,0.02796724]
[1737799466213,0.02595018,247.1,247.08,4.0477]
[1737799466907,4.0463,247.17,247.11,4.0473]
[1737799467111,9.43761673,247.2,247.06,4.0295]
[1737799467515,2.92255105,247.19,247.06,4.0295]
[1737799468217,0.02981385,247.15,247.1,4.07464975]
[1737799468813,0.02981385,247.15,247.1,0.02734975]
[1737799469716,2.92405982,247.14,247.1,0.02734975]
[1737799469915,4.0472,247.12,247.1,0.02734975]
[1737799470815,4.0473,247.11,247.1,0.02734975]
[1737799471813,9.43761673,247.11,246.97,10.72081673]
[1737799473019,0.0292417,247.06,247.02,0.0255371]
[1737799473220,4.0487,247.03,247.02,0.0255371]
[1737799476022,4.0487,247.03,247.02,3.71e-05]
[1737799476423,6.97471223,247.03,247.02,3.71e-05]
[1737799477220,4.0487,247.03,247.02,3.71e-05]
[1737799478421,0.0292417,247.06,247.02,3.71e-05]
[1737799478624,2.92553179,247.03,247.02,3.71e-05]
[1737799479015,0.0292417,247.06,247.02,3.71e-05]
[1737799479628,4.0485,247.04,247.02,3.71e-05]
[1737799480427,4.0486,247.03,247.02,3.71e-05]
[1737799483428,6.97591683,247.03,247.02,3.71e-05]
[1737799487832,13.01780231,247.03,247.02,3.71e-05]
[1737799488828,6.97591683,247.03,247.02,3.71e-05]
[1737799489428,2.92731683,247.03,247.02,3.71e-05]
[1737799489629,4.0486,247.04,247.02,3.71e-05]
[1737799489829,6.04188548,247.05,247.02,3.71e-05]
[1737799490133,2.9309538,247.04,247.02,3.71e-05]
[1737799490832,6.04188548,247.05,247.02,3.71e-05]
[1737799491031,2.93097646,247.03,247.02,3.71e-05]
[1737799492233,6.97957646,247.03,247.02,3.71e-05]
[1737799492830,2.93097646,247.03,247.02,3.71e-05]
[1737799493037,0.0292417,247.06,247.02,6.04192258]
[1737799493227,0.0292417,247.06,247.04,6.04188548]
[1737799493734,0.0292417,247.06,247.02,3.71e-05]
[1737799494136,0.0292417,247.06,247.05,4.0483]
[1737799494335,0.0292417,247.06,247.02,3.71e-05]
[1737799498134,4.0486,247.03,247.02,3.71e-05]
[1737799510045,0.0292417,247.06,247.02,3.71e-05]
[1737799512244,4.0486,247.03,247.02,3.71e-05]
[1737799514047,10.08909101,247.03,247.02,3.71e-05]
[1737799515547,4.0485,247.04,247.02,3.71e-05]
[1737799515745,0.0292417,247.06,247.02,3.71e-05]
[1737799517343,4.0773417,247.06,247.02,3.71e-05]
[1737799518148,4.0486,247.03,247.02,3.71e-05]
[1737799519750,4.0484,247.05,247.02,3.71e-05]
[1737799520049,0.0292417,247.06,247.02,3.71e-05]
[1737799520648,0.0292417,247.06,247.03,6.04049101]
[1737799521047,6.04049101,247.12,247.05,6.04049101]
[1737799521249,4.0473,247.11,247.06,4.0481]
[1737799521449,1.3693,247.24,247.04,1.3041]
[1737799521450,6.04049101,247.1,247.04,1.3041]
[1737799521847,4.0481,247.07,247.04,1.3041]
[1737799522051,6.04049101,247.07,246.99,6.04049101]
[1737799522250,10.08859101,247.07,247.03,0.0256689]
[1737799522445,6.04049101,247.07,247.03,0.0256689]
[1737799523353,4.0484,247.04,247.03,0.0256689]
[1737799527554,4.0484,247.04,247.03,6.89e-05]
[1737799536259,6.04049101,247.05,246.91,1.3757]
[1737799536458,4.0498,246.96,246.91,1.3757]
[1737799537365,6.04049101,246.98,246.89,6.04049101]
[1737799537660,0.02830304,246.96,246.89,6.04049101]
[1737799537862,0.02830304,246.96,246.91,6.04049101]
[1737799538558,0.02830304,246.96,246.95,4.0499]
[1737799538761,0.02830304,246.96,246.93,6.04049101]
[1737799539257,6.04049101,247.04,246.95,6.04049101]
[1737799540264,4.0488,247.02,246.95,6.04049101]
[1737799540457,4.07994249,247.02,246.97,0.02885653]
[1737799540955,4.049,247.01,246.97,0.02885653]
[1737799541863,10.1205335,247.02,246.97,0.02885653]
[1737799542063,6.0716335,247.02,246.97,0.02885653]
[1737799542263,0.03114249,247.02,246.97,0.02885653]
[1737799543963,6.0716335,247.02,246.97,0.02885653]
[1737799544265,10.1204335,247.02,246.97,4.07835653]
[1737799545571,4.0491,247.01,246.97,0.02885653]
[1737799546465,6.04049101,247.0,246.97,0.02885653]
[1737799547670,10.08959101,247.0,246.97,0.02885653]
[1737799548571,4.0493,246.99,246.97,0.02885653]
[1737799549275,4.0491,247.01,246.97,4.07835653]
[1737799549476,0.03114249,247.02,246.97,6.06934754]
[1737799550175,4.07994249,247.02,246.97,10.11894754]
[1737799550474,0.03114249,247.02,246.97,6.06934754]
[1737799550976,6.04049101,247.08,246.99,6.04049101]
[1737799551171,6.04049101,247.08,247.01,6.04049101]
[1737799551577,4.048,247.07,247.01,10.08929101]
[1737799551872,1.2958,247.19,247.01,10.08929101]
[1737799551873,6.04049101,247.1,247.01,6.04049101]
[1737799552078,6.04049101,247.15,247.07,6.04049101]
[1737799552378,6.04049101,247.13,247.03,6.04049101]
[1737799552571,6.04049101,247.11,247.03,6.04049101]